bitfinex/quotes_ETHUSD_20250604
["timestamp","ask_amount","ask_price","bid_price","bid_amount"]
[1749060494702,10.07284461,2635.3,2635.2,10.15827792]
[1749060494875,10.07284461,2635.3,2635.2,9.803]
[1749060495070,2.34121315,2635.3,2635.2,9.803]
[1749060495288,1.4255,2635.3,2635.2,16.022]
[1749060495484,1.9755,2635.3,2635.2,16.022]
[1749060496093,1.3935,2635.6,2635.2,16.022]
[1749060496299,1.712541,2635.6,2635.2,16.022]
[1749060497091,0.55,2635.5,2635.2,16.022]
[1749060497982,7.18163146,2635.4,2635.2,16.022]
[1749060498191,1.9437,2635.3,2635.2,8.18]
[1749060498384,2.85623315,2635.3,2635.2,9.804]
[1749060499284,1.9437,2635.2,2635.1,0.02]
[1749060499483,1.9437,2635.2,2635.1,1.644]
[1749060499978,0.55,2635.1,2634.1,0.02]
[1749060500181,7.18163146,2634.3,2634.2,6.219]
[1749060500400,1.4744,2634.5,2634.2,6.219]
[1749060501701,0.55,2634.5,2634.2,6.219]
[1749060502012,0.55,2635.0,2634.2,6.219]
[1749060502513,7.18163146,2634.9,2634.2,6.219]
[1749060503183,7.18163146,2634.9,2634.3,0.35528269]
[1749060503377,0.55,2634.8,2634.1,0.02]
[1749060503604,0.55,2634.8,2634.2,6.219]
[1749060504319,0.55,2634.8,2634.1,0.02]
[1749060504478,0.77316315,2634.7,2634.3,6.22]
[1749060505323,2.10366315,2634.7,2634.3,6.22]
[1749060505494,7.18163146,2634.6,2634.3,6.22]
[1749060505696,7.18163146,2634.6,2634.1,0.02]
[1749060505898,7.18163146,2634.6,2634.4,6.22]
[1749060507512,7.18163146,2634.6,2634.5,9.809]
[1749060507911,7.18163146,2634.6,2634.5,16.029]
[1749060508084,9.83869461,2634.6,2634.5,8.185]
[1749060508287,9.83869461,2634.6,2634.5,9.809]
[1749060508633,9.83869461,2634.6,2634.1,0.02]
[1749060508634,0.55,2634.3,2634.1,0.02]
[1749060508814,9.06703146,2634.2,2634.1,0.02]
[1749060511728,0.55,2634.1,2632.8,16.0]
[1749060511936,0.55,2634.1,2632.9,11.247021]
[1749060512102,7.18163146,2633.9,2632.9,8.762143]
[1749060512428,7.18163146,2633.9,2632.6,16.0]
[1749060512617,7.18163146,2633.9,2632.9,13.182637]
[1749060512814,7.18163146,2633.9,2632.9,16.0]
[1749060513030,8.04546492,2633.9,2633.0,6.221]
[1749060513236,0.55,2633.8,2632.7,15.741488]
[1749060513433,7.18163146,2633.6,2632.1,0.02]
[1749060513635,1.62321315,2633.5,2632.3,10.391759]
[1749060513841,7.18163146,2633.3,2632.1,0.02]
[1749060514007,7.18163146,2633.3,2632.2,3.651416]
[1749060514336,7.18163146,2633.3,2632.4,16.0]
[1749060514510,8.06211592,2633.3,2632.6,10.0]
[1749060514706,8.06211592,2633.3,2632.5,2.247567]
[1749060514906,8.06211592,2633.3,2632.6,10.0]
[1749060515110,8.06211592,2633.3,2632.5,2.247567]
[1749060515315,8.06211592,2633.3,2632.6,10.0]
[1749060515555,9.33081592,2633.3,2632.7,6.221]
[1749060515701,9.33081592,2633.3,2632.8,6.221]
[1749060517001,0.55,2633.2,2632.2,3.37508]
[1749060517201,7.18163146,2633.0,2632.1,0.02]
[1749060517405,7.18163146,2632.7,2632.1,0.02]
[1749060517631,7.18163146,2632.4,2632.2,9.811]
[1749060517910,7.18163146,2632.4,2632.2,16.033]
[1749060518103,7.18163146,2632.4,2632.2,9.811]
[1749060518414,0.55,2632.3,2632.2,9.811]
[1749060518942,0.55,2632.3,2632.2,9.812]
[1749060519417,1.32316315,2632.3,2632.2,9.812]
[1749060519614,2.56976315,2632.3,2632.2,8.187]
[1749060519813,2.56976315,2632.3,2632.2,9.812]
[1749060522144,2.56976315,2632.3,2632.2,10.16765156]
[1749060522343,1.7966,2632.3,2632.2,9.812]
[1749060523546,0.55,2632.6,2632.2,9.812]
[1749060524108,0.55,2632.7,2632.2,9.812]
[1749060524303,7.18163146,2632.7,2632.3,6.224]
[1749060524509,0.55,2632.6,2632.3,6.224]
[1749060524750,8.02943461,2632.7,2632.3,6.224]
[1749060524934,0.55,2632.6,2632.3,6.224]
[1749060525133,0.55,2632.6,2632.4,0.35559654]
[1749060525519,1.2964,2632.8,2632.4,0.35559654]
[1749060525843,1.2953,2633.0,2632.4,0.35559654]
[1749060526203,1.2953,2633.0,2632.5,0.35555752]
[1749060526448,7.18163146,2632.9,2632.4,0.35559654]
[1749060527843,7.18163146,2632.9,2632.5,0.35556921]
[1749060528147,7.18163146,2632.9,2632.4,0.35559654]
[1749060528148,0.55,2632.8,2632.4,0.35559654]
[1749060528320,0.55,2632.8,2632.5,6.225]
[1749060528644,7.18163146,2632.8,2632.5,6.225]
[1749060530966,7.18163146,2632.8,2632.6,0.35557606]
[1749060531145,7.18163146,2632.8,2632.5,6.225]
[1749060531341,7.73163146,2632.8,2632.5,6.225]
[1749060531669,0.55,2632.7,2632.6,6.225]
[1749060531865,1.8653,2632.7,2632.6,1.625]
[1749060533841,1.8653,2632.7,2632.4,0.35559654]
[1749060534055,9.04693146,2632.5,2632.4,0.35559654]
[1749060534260,1.8653,2632.4,2632.2,8.187]
[1749060534442,0.55,2632.4,2632.3,1.625]
[1749060534633,9.04693146,2632.4,2632.1,0.02]
[1749060534857,1.8653,2632.2,2632.1,0.02]
[1749060537588,1.8653,2632.2,2632.1,9.838]
[1749060539154,17.8653,2632.2,2632.1,9.82]
[1749060539383,27.67603102,2632.2,2632.1,9.82]
[1749060541679,27.67603102,2632.2,2631.2,6.227]
[1749060541680,0.55,2632.0,2631.2,6.227]
[1749060541851,0.55,2631.8,2631.3,1.626]
[1749060542056,7.18163146,2631.4,2631.3,1.626]
[1749060542367,7.18163146,2631.4,2631.3,7.853]
[1749060542942,8.53243146,2631.4,2631.3,1.626]
[1749060543177,7.18163146,2631.4,2631.3,7.853]
[1749060544895,0.55,2631.9,2631.3,7.853]
[1749060545043,7.73163146,2631.7,2631.3,1.626]
[1749060545244,7.73163146,2631.7,2631.4,6.227]
[1749060545444,7.73163146,2631.7,2630.3,3.245726]
[1749060545644,7.73163146,2631.7,2630.5,16.276857]
[1749060545839,7.18163146,2631.7,2630.7,10.0]
[1749060546086,7.18163146,2631.7,2630.8,10.0]
[1749060546279,0.55,2631.6,2630.9,7.853]
[1749060546482,0.55,2631.6,2631.0,1.626]
[1749060547460,0.55,2631.6,2631.1,8.195]
[1749060548443,7.18163146,2631.7,2631.1,8.195]
[1749060549872,7.18163146,2631.7,2631.2,8.20972048]
[1749060550190,7.89979461,2631.7,2631.2,7.854]
[1749060550956,1.3508,2632.0,2631.2,7.854]
[1749060551207,0.55,2631.9,2631.2,7.854]
[1749060551555,0.55,2631.9,2631.3,0.35569483]
[1749060551898,0.55,2631.9,2631.4,1.626]
[1749060552107,17.3508,2632.0,2631.5,1.626]
[1749060552308,0.78,2631.8,2631.6,1.626]
[1749060552454,0.78,2631.7,2630.6,40.0]
[1749060552765,0.78,2631.9,2630.9,11.861477]
[1749060552964,0.78,2631.9,2631.0,6.228]
[1749060555656,7.18163146,2631.5,2630.7,1.626]
[1749060555955,1.3652,2631.4,2630.8,6.228]
[1749060556272,1.3652,2631.4,2630.9,7.854]
[1749060556473,1.3652,2631.4,2631.0,1.626]
[1749060557554,7.73163146,2631.2,2631.1,8.195]
[1749060557755,9.01473146,2631.2,2631.1,9.821]
[1749060558979,1.8331,2631.2,2631.1,9.821]
[1749060559157,9.01473146,2631.2,2631.1,9.821]
[1749060559794,9.01473146,2631.2,2631.1,8.195]
[1749060559999,9.91620461,2631.2,2631.1,9.821]
[1749060560357,9.91620461,2631.2,2630.2,3.278]
[1749060560554,1.45147315,2631.2,2631.1,8.196]
[1749060560763,0.55,2631.2,2631.1,9.822]
[1749060561001,1.901,2631.2,2631.1,9.822]
[1749060561710,9.08263146,2631.2,2631.1,9.822]
[1749060564302,8.53263146,2631.2,2631.1,9.822]
[1749060564502,9.08263146,2631.2,2631.1,9.822]
[1749060564747,8.53263146,2631.2,2631.1,9.822]
[1749060564897,7.18163146,2631.2,2631.1,9.822]
[1749060565212,7.73163146,2631.2,2631.1,9.822]
[1749060565570,8.62868461,2631.2,2631.1,9.822]
[1749060567476,9.99388461,2631.2,2631.1,9.822]
[1749060567824,9.99388461,2631.2,2631.1,8.196]
[1749060567973,0.55,2631.1,2630.1,0.02]
[1749060568180,7.18163146,2630.4,2630.2,6.234]
[1749060568590,7.18163146,2630.4,2630.1,0.02]
[1749060568786,7.18163146,2630.4,2630.2,6.233]
[1749060569186,7.18163146,2630.7,2630.2,6.233]
[1749060570226,8.54683146,2630.9,2630.2,6.233]
[1749060570398,8.81635146,2630.9,2630.2,6.233]
[1749060570737,0.55,2630.8,2630.2,6.233]
[1749060571096,8.81635146,2630.9,2630.2,6.233]
[1749060571900,0.78,2631.0,2630.3,15.739379]
[1749060572099,7.18163146,2631.2,2630.3,16.458859]
[1749060572300,7.18163146,2631.2,2630.4,3.616428]
[1749060572492,7.18163146,2631.2,2630.4,3.32878]
[1749060572830,7.18163146,2631.2,2630.4,2.69478]
[1749060573024,7.18163146,2631.2,2630.3,10.0]
[1749060573228,2.0852,2631.5,2630.5,10.0]
[1749060573431,0.78,2631.5,2630.6,10.0]
[1749060573731,15.06163146,2631.6,2630.2,6.233]
[1749060573732,0.78,2631.6,2630.4,26.0]
[1749060573929,7.18163146,2631.8,2630.5,29.86092]
[1749060574153,7.18163146,2631.8,2630.7,10.0]
[1749060574308,7.18163146,2631.2,2630.8,6.235]
[1749060574891,0.78,2631.2,2630.8,6.235]
[1749060575089,0.78,2631.2,2630.9,27.623877]
[1749060575397,1.3322,2632.0,2630.9,27.623877]
[1749060575398,0.78,2632.0,2630.9,27.623877]
[1749060576635,7.96163146,2632.1,2630.9,27.623877]
[1749060577406,7.96163146,2632.1,2631.0,13.45765549]
[1749060577608,7.96163146,2632.1,2631.1,24.975504]
[1749060578655,0.78,2632.1,2631.1,24.975504]
[1749060579519,0.78,2632.1,2631.2,0.35565236]
[1749060579700,0.78,2632.1,2631.1,24.975504]
[1749060580204,0.78,2632.1,2631.3,40.0]
[1749060580411,0.78,2632.1,2631.5,5.806002]
[1749060580612,0.78,2632.1,2631.0,9.823]
[1749060580613,0.78,2632.1,2631.6,7.862]
[1749060580815,0.78,2632.1,2631.7,1.626]
[1749060581015,7.96163146,2632.2,2631.7,1.626]
[1749060581308,7.96163146,2632.2,2631.8,0.35565458]
[1749060581517,8.89101461,2632.2,2631.9,1.626]
[1749060581704,7.96163146,2632.2,2632.0,7.862]
[1749060583098,7.96163146,2632.2,2632.1,7.862]
[1749060584935,0.78,2632.2,2632.1,7.862]
[1749060586217,0.78,2632.4,2632.1,7.862]
[1749060586540,0.78,2632.6,2632.1,7.862]
[1749060587438,0.78,2632.7,2632.1,7.862]
[1749060587734,7.96163146,2632.8,2632.1,7.862]
[1749060589048,7.96163146,2632.8,2632.2,6.233]
[1749060589511,7.96163146,2632.8,2631.8,3.277]
[1749060589715,1.3663,2632.7,2632.0,10.0]
[1749060590736,1.1553,2632.7,2632.0,10.0]
[1749060592923,1.1553,2632.7,2632.1,8.194]
[1749060593443,7.96163146,2632.8,2632.1,8.194]
[1749060595038,7.96163146,2632.8,2632.3,10.0]
[1749060595351,7.96163146,2632.8,2632.1,8.194]
[1749060595663,7.96163146,2632.8,2632.2,2.010382]
[1749060595824,7.96163146,2632.8,2632.3,10.0]
[1749060596006,7.96163146,2632.8,2632.1,8.194]
[1749060596419,0.78,2632.8,2632.2,4.545589]
[1749060596624,0.8,2632.9,2632.3,10.0]
[1749060596837,0.8,2632.9,2632.4,6.226]
[1749060597156,0.8,2632.9,2632.5,7.854]
[1749060597958,1.3415,2632.7,2632.1,8.194]
[1749060598122,1.3415,2632.7,2632.6,7.854]
[1749060598325,1.3415,2632.7,2632.2,1.628]
[1749060598507,1.3415,2632.7,2631.2,40.0]
[1749060598710,1.3415,2632.7,2631.3,30.0]
[1749060599020,8.51943146,2632.2,2631.0,17.618923]
[1749060599217,8.51943146,2632.2,2630.8,31.14031804]
[1749060599459,8.51943146,2632.2,2631.0,25.608213]
[1749060599667,8.51943146,2632.2,2631.0,24.679557]
[1749060599862,8.51943146,2632.2,2631.0,30.0]
[1749060600225,8.51943146,2632.2,2631.3,16.0]
[1749060600455,8.51943146,2632.2,2631.5,10.0]
[1749060600746,1.3378,2632.2,2631.6,6.226]
[1749060602459,1.2345,2632.4,2631.7,24.803835]
[1749060602651,1.2345,2632.4,2631.8,7.490514]
[1749060602958,1.2345,2632.4,2631.7,9.974417]
[1749060603469,0.78,2632.5,2631.7,9.974417]
[1749060603991,0.78,2632.5,2631.8,10.0]
[1749060604191,0.78,2632.5,2631.9,10.0]
[1749060604409,1.2939,2632.3,2630.9,30.0]
[1749060604701,1.2939,2632.3,2631.1,30.0]
[1749060604902,1.2939,2632.3,2631.0,22.226]
[1749060604903,1.2939,2632.3,2631.4,16.0]
[1749060605107,1.2939,2632.3,2631.5,22.783711]
[1749060605308,0.78,2632.5,2631.7,15.990468]
[1749060605506,0.78,2632.5,2631.8,10.0]
[1749060605706,0.20739,2632.4,2631.7,5.886413]
[1749060606245,0.20739,2632.4,2631.8,10.0]
[1749060606404,0.20739,2632.4,2631.7,5.897798]
[1749060606612,0.78,2632.5,2631.8,10.0]
[1749060606790,0.78,2632.5,2631.7,12.007548]
[1749060606995,0.78,2632.5,2631.8,10.0]
[1749060607196,0.78,2632.5,2631.8,3.707934]
[1749060607362,0.78,2632.5,2631.8,10.0]
[1749060607563,0.78,2632.5,2631.7,2.545085]
[1749060607564,0.78,2632.5,2631.9,9.821]
[1749060607795,1.70555315,2632.5,2631.9,9.821]
[1749060608401,0.78,2632.4,2631.9,9.821]
[1749060609559,0.78,2632.4,2632.0,6.226]
[1749060610197,0.78,2632.4,2631.9,9.821]
[1749060610398,0.78,2632.4,2632.1,6.226]
[1749060610598,0.78,2632.5,2632.1,6.226]
[1749060610859,1.3541,2632.3,2631.9,9.821]
[1749060611086,1.3541,2632.3,2632.2,6.226]
[1749060612073,1.3541,2632.3,2632.2,7.854]
[1749060612276,8.53573146,2632.3,2632.2,7.854]
[1749060613593,9.08573146,2632.3,2632.2,1.628]
[1749060613773,1.2893,2632.1,2631.9,8.193]
[1749060614109,1.2893,2632.1,2632.0,7.851]
[1749060614904,2.6193,2632.1,2632.0,7.851]
[1749060615073,2.0693,2632.1,2632.0,7.851]
[1749060621128,0.78,2632.1,2632.0,7.851]
[1749060624227,0.78,2632.1,2632.0,1.625]
[1749060624730,2.0718,2632.1,2632.0,7.851]
[1749060629492,2.99714315,2632.1,2632.0,1.625]
[1749060629790,2.25534315,2632.1,2632.0,1.625]
[1749060629975,2.25534315,2632.1,2632.0,7.851]
[1749060630361,3.46564315,2632.1,2632.0,7.851]
[1749060631186,7.27215451,2632.1,2632.0,7.851]
[1749060631362,6.34681136,2632.1,2632.0,7.851]
[1749060631692,4.58651136,2632.1,2632.0,7.851]
[1749060635287,4.58651136,2632.1,2632.0,16.045]
[1749060637010,4.58651136,2632.1,2631.0,30.0]
[1749060637164,3.80651136,2631.9,2631.1,13.842543]
[1749060637362,3.80651136,2631.9,2631.2,16.018642]
[1749060637559,3.80651136,2631.9,2631.4,10.0]
[1749060637758,3.80651136,2631.9,2631.5,10.0]
[1749060637996,3.80651136,2631.9,2631.4,10.0]
[1749060638197,3.80651136,2631.9,2631.5,16.226]
[1749060638400,3.80651136,2631.9,2631.5,6.226]
[1749060641863,3.80651136,2631.9,2631.2,11.471]
[1749060642063,5.10721136,2631.9,2631.3,7.851]
[1749060643165,3.80651136,2631.9,2631.3,7.851]
[1749060643929,3.80651136,2631.9,2631.4,17.820046]
[1749060644101,3.80651136,2631.9,2631.5,10.0]
[1749060644263,3.80651136,2631.9,2631.6,8.194]
[1749060644612,3.80651136,2631.9,2631.7,6.226]
[1749060645370,3.80651136,2631.9,2631.8,1.625]
[1749060646505,4.3103925,2631.9,2631.8,1.625]
[1749060646706,4.3103925,2631.9,2631.8,7.851]
[1749060647475,4.3103925,2631.9,2631.8,16.045]
[1749060649842,4.3103925,2631.9,2631.8,8.194]
[1749060650132,4.3103925,2631.9,2631.8,16.045]
[1749060652428,4.3103925,2631.9,2631.8,8.194]
[1749060652635,4.3103925,2631.9,2631.8,9.819]
[1749060652934,4.3103925,2631.9,2631.8,16.045]
[1749060655139,0.50388114,2631.9,2631.8,16.045]
[1749060655341,5.03881136,2632.1,2631.8,16.045]
[1749060655842,0.78,2632.0,2631.8,16.045]
[1749060658045,3.80651136,2631.9,2631.8,16.045]
[1749060659042,3.80651136,2631.9,2631.8,16.044]
[1749060659340,0.78,2632.0,2631.8,16.044]
[1749060659646,4.58651136,2632.0,2631.8,16.044]
[1749060659845,5.1683925,2632.0,2631.8,16.044]
[1749060660052,5.1683925,2632.0,2631.9,1.625]
[1749060660836,5.1683925,2632.0,2631.9,7.85]
[1749060663629,0.78,2632.0,2631.9,7.85]
[1749060663838,0.78,2632.2,2632.1,10.0]
[1749060664015,0.78,2632.2,2632.1,9.387355]
[1749060664339,0.78,2632.2,2632.0,16.097495]
[1749060664543,0.02,2632.9,2632.0,16.097495]
[1749060664544,0.78,2632.8,2632.1,3.80651136]
[1749060664730,0.02,2632.9,2632.3,28.31884736]
[1749060664927,0.02,2632.9,2632.5,20.337498]
[1749060665126,0.02,2632.9,2632.5,15.4042]
[1749060665341,0.02,2632.9,2632.6,10.0]
[1749060665540,0.02,2632.9,2632.7,10.0]
[1749060665740,0.02,2632.9,2632.8,6.225]
[1749060665941,0.02,2632.9,2632.0,16.0]
[1749060666143,0.02,2632.9,2632.2,10.054968]
[1749060666144,3.82651136,2632.9,2632.2,10.054968]
[1749060666347,3.82651136,2632.9,2632.3,6.224]
[1749060666644,3.82651136,2632.9,2631.9,3.80651136]
[1749060666645,3.82651136,2632.9,2632.4,6.224]
[1749060667367,3.80651136,2632.7,2631.5,30.0]
[1749060667509,3.80651136,2632.7,2630.4,0.2]
[1749060667510,3.80651136,2632.3,2632.1,3.277]
[1749060667714,3.80651136,2632.3,2632.2,16.042]
[1749060667939,0.78,2632.8,2632.2,16.042]
[1749060667940,1.3155,2632.6,2632.2,9.818]
[1749060668115,1.3155,2632.6,2632.3,6.224]
[1749060668116,3.80651136,2632.4,2632.3,6.224]
[1749060669547,3.80651136,2632.4,2632.2,9.818]
[1749060669745,3.80651136,2632.4,2632.3,6.223]
[1749060670863,3.80651136,2632.4,2632.2,9.818]
[1749060671066,3.80651136,2632.4,2632.3,6.223]
[1749060671643,3.80651136,2632.4,2632.2,8.193]
[1749060671965,4.4176675,2632.4,2632.2,8.193]
[1749060672275,1.7846,2632.3,2632.2,8.193]
[1749060672427,1.7846,2632.3,2632.2,16.041]
[1749060677487,4.4176675,2632.4,2632.2,16.041]
[1749060680005,4.4176675,2632.4,2632.2,8.193]
[1749060680006,1.2153,2632.3,2632.2,8.193]
[1749060680210,1.85659675,2632.3,2632.2,16.04]
[1749060682317,2.63659675,2632.3,2632.2,16.04]
[1749060682923,1.42129675,2632.3,2632.2,16.04]
[1749060683088,0.78,2632.3,2632.2,16.04]
[1749060688324,0.78,2632.4,2632.2,16.04]
[1749060691010,0.78,2632.4,2632.2,8.193]
[1749060691223,0.78,2632.4,2632.3,7.846]
[1749060692315,0.78,2632.4,2632.3,1.624]
[1749060692628,0.78,2632.4,2632.3,7.846]
[1749060693336,1.23865114,2632.4,2632.3,1.624]
[1749060693943,2.50915114,2632.4,2631.1,0.51]
[1749060694218,3.80651136,2632.3,2631.3,30.0]
[1749060694387,3.80651136,2632.3,2631.4,6.222]
[1749060694584,3.80651136,2632.3,2631.5,25.042336]
[1749060695726,1.2705,2632.4,2631.5,25.042336]
[1749060696022,1.2705,2632.4,2631.5,30.0]
[1749060697040,1.2649,2632.6,2631.5,28.30296]
[1749060697190,1.2649,2632.6,2631.5,26.967203]
[1749060697191,0.78,2632.3,2631.5,26.967203]
[1749060697389,0.78,2632.3,2631.6,11.47]
[1749060697592,0.78,2632.3,2631.7,15.019296]
[1749060697837,0.78,2632.4,2631.9,13.929448]
[1749060698037,0.78,2632.4,2632.0,10.0]
[1749060698490,0.78,2632.4,2631.9,4.087008]
[1749060698682,3.80651136,2632.5,2632.0,10.0]
[1749060698883,3.80651136,2632.5,2631.9,4.087008]
[1749060699123,3.80651136,2632.5,2632.0,10.0]
[1749060699327,3.80651136,2632.5,2631.9,4.087008]
[1749060699488,3.80651136,2632.5,2632.0,10.0]
[1749060700030,3.80651136,2632.5,2631.9,4.087008]
[1749060700194,3.80651136,2632.5,2632.0,10.0]
[1749060701550,3.80651136,2632.5,2631.9,4.087008]
[1749060701782,3.80651136,2632.5,2632.0,10.0]
[1749060701960,3.80651136,2632.5,2631.9,9.088106]
[1749060702481,3.80651136,2632.5,2631.9,8.83502]
[1749060704964,0.02,2632.9,2632.0,3.80651136]
[1749060705278,0.02,2632.9,2631.8,7.846]
[1749060705279,0.02,2632.9,2632.5,40.0]
[1749060705478,0.02,2632.9,2632.2,1.13972269]
[1749060705479,0.02,2632.9,2632.7,30.0]
[1749060705662,0.02,2632.9,2632.8,31.623]
[1749060705867,0.02,2632.9,2632.8,25.791704]
[1749060706488,0.02,2632.9,2632.8,13.862019]
[1749060706787,0.02,2632.9,2632.8,4.908939]
[1749060707453,0.02,2632.9,2632.8,16.376939]
[1749060708589,0.02,2632.9,2632.8,13.091]
[1749060709356,0.02,2632.9,2632.8,1.622]
[1749060709859,0.02,2632.9,2632.8,4.433051]
[1749060710590,0.02,2632.9,2632.4,0.51]
[1749060710910,0.02,2632.9,2632.5,1.622]
[1749060710911,3.82651136,2632.9,2632.5,1.622]
[1749060711213,3.80651136,2632.7,2631.8,18.261461]
[1749060711510,1.1847,2632.4,2631.9,7.841]
[1749060713184,1.1847,2632.4,2632.0,7.841]
[1749060713497,1.1847,2632.4,2632.1,1.622]
[1749060714700,0.78,2632.8,2632.0,6.219]
[1749060714701,4.93251136,2632.7,2632.0,6.219]
[1749060714997,1.126,2632.7,2632.4,10.0]
[1749060715173,1.126,2632.7,2632.2,10.318843]
[1749060716601,1.146,2632.9,2632.2,10.318843]
[1749060716762,0.02,2632.9,2632.4,30.0]
[1749060716973,0.02,2632.9,2632.4,22.979099]
[1749060717509,0.02,2632.9,2632.5,9.813]
[1749060717711,0.02,2632.9,2632.7,2.21292]
[1749060717896,0.02,2632.9,2632.8,10.0]
[1749060718097,0.02,2632.9,2632.7,12.16512]
[1749060718270,0.02,2632.9,2632.8,10.0]
[1749060718473,0.02,2632.9,2632.7,12.186065]
[1749060718669,0.02,2632.9,2632.6,6.219]
[1749060718873,0.02,2632.9,2632.7,2.994631]
[1749060719104,0.02,2632.9,2632.8,10.0]
[1749060720382,0.02,2632.9,2632.7,12.816631]
[1749060720585,0.02,2632.9,2632.8,10.0]
[1749060721109,0.02,2632.9,2632.6,6.219]
[1749060721110,0.02,2632.9,2632.5,9.813]
[1749060721312,0.02,2632.9,2632.8,6.219]
[1749060725779,0.02,2632.9,2632.5,9.813]
[1749060725979,1.2033,2632.9,2632.6,1.622]
[1749060726298,1.2033,2632.9,2632.7,6.218]
[1749060726738,1.9833,2632.9,2632.7,6.218]
[1749060727379,1.9833,2632.9,2632.8,6.218]
[1749060727582,2.50459043,2632.9,2632.8,6.218]
[1749060729234,2.50459043,2632.9,2632.8,14.408]
[1749060730659,6.31110179,2632.9,2632.8,8.19]
[1749060730944,2.50459043,2632.9,2632.8,16.03]
[1749060731295,1.9833,2632.9,2632.8,16.03]
[1749060736314,5.78981136,2632.9,2632.8,8.19]
[1749060736514,6.33981136,2632.9,2632.8,9.811]
[1749060737514,6.33981136,2632.9,2632.8,8.19]
[1749060737734,1.1282,2632.4,2632.3,6.218]
[1749060737944,4.93471136,2632.4,2632.3,16.03]
[1749060738100,1.1282,2632.4,2632.3,16.03]
[1749060741433,1.1282,2632.4,2632.3,9.812]
[1749060741631,1.9082,2632.4,2632.3,16.03]
[1749060742510,0.55,2632.8,2632.3,16.03]
[1749060742511,0.02,2632.9,2632.4,6.317179]
[1749060742714,0.02,2632.9,2632.5,10.0]
[1749060744215,3.82651136,2632.9,2632.3,16.03]
[1749060744418,3.80651136,2632.7,2632.4,7.839]
[1749060744612,3.80651136,2632.7,2632.4,1.621]
[1749060744840,3.80651136,2632.7,2632.5,6.218]
[1749060746577,3.80651136,2632.7,2632.6,6.217]
[1749060750621,1.1857,2632.8,2632.6,6.217]
[1749060752571,0.02,2632.9,2632.6,16.217]
[1749060753150,0.02,2632.9,2632.6,6.217]
[1749060753357,0.78,2632.8,2632.6,6.217]
[1749060753554,0.78,2632.8,2632.6,16.217]
[1749060753867,0.78,2632.8,2632.6,6.217]
[1749060756060,0.78,2632.8,2632.7,8.192]
[1749060762379,0.78,2632.8,2632.7,1.621]
[1749060762692,1.35890114,2632.8,2632.7,1.621]
[1749060762919,5.1654125,2632.8,2632.7,1.621]
[1749060763192,6.8977125,2632.8,2632.7,1.621]
[1749060764105,0.2,2632.5,2631.7,30.0]
[1749060764282,0.78,2632.4,2631.7,30.0]
[1749060765089,0.78,2632.4,2631.8,6.216]
[1749060765292,0.78,2632.4,2631.9,15.59621]
[1749060766601,1.9932,2632.4,2632.0,6.216]
[1749060767493,1.9932,2632.4,2632.1,9.812]
[1749060768283,0.78,2632.4,2632.1,9.812]
[1749060770394,1.9685,2632.4,2632.2,6.216]
[1749060771159,0.78,2632.4,2632.3,15.527888]
[1749060771383,0.98,2632.5,2632.4,10.0]
[1749060771590,0.98,2632.5,2632.3,10.0]
[1749060771974,0.98,2632.5,2632.1,8.192]
[1749060772181,0.98,2632.5,2632.4,7.836]
[1749060772473,1.45865114,2632.5,2632.4,7.836]
[1749060772877,0.98,2632.5,2632.4,7.836]
[1749060773861,2.1479,2632.5,2632.4,1.62]
[1749060774107,0.2,2632.3,2632.1,8.192]
[1749060774396,0.2,2632.3,2632.2,7.836]
[1749060774776,0.2,2632.3,2632.2,7.835]
[1749060775892,0.2,2632.3,2632.2,1.62]
[1749060776092,0.2,2632.3,2632.2,7.835]
[1749060777005,0.98,2632.3,2632.2,7.835]
[1749060781173,0.98,2632.3,2632.2,10.368794]
[1749060781375,0.98,2632.3,2632.2,7.835]
[1749060782608,0.98,2632.3,2632.2,12.04441]
[1749060783131,0.98,2632.3,2632.2,11.724538]
[1749060787314,0.78,2632.3,2632.2,11.724538]
[1749060788784,0.2,2632.5,2632.2,11.724538]
[1749060788986,0.2,2632.5,2632.3,10.0]
[1749060790117,0.2,2632.5,2632.3,20.138345]
[1749060790321,0.2,2632.5,2632.3,10.138345]
[1749060790509,0.2,2632.5,2632.4,8.192]
[1749060791421,0.78,2632.7,2632.4,8.192]
[1749060791725,0.2,2632.5,2632.4,8.192]
[1749060792231,0.78,2632.7,2632.4,8.192]
[1749060792383,0.2,2632.5,2632.4,8.192]
[1749060793324,0.2,2632.5,2632.4,15.786606]
[1749060793518,0.2,2632.5,2632.4,8.192]
[1749060795126,0.2,2632.5,2632.4,9.812]
[1749060797324,0.2,2632.5,2632.4,16.026]
[1749060800726,0.98,2632.5,2632.4,16.026]
[1749060805331,0.78,2632.5,2632.4,16.026]